Cogmind - Beta 11.1 @@@ ROGUE MODE // 2022.04.23 @ 15:01:32 Player: Togure Result: Self-destructed Performance ------------- Evolutions (1) 500 Regions Visited (2) 400 Robots Destroyed (5) 25 Value Destroyed (206) 206 Prototype IDs (0) 0 Alien Tech Used (0) 0 Bonus (0) 0 TOTAL SCORE: 1131 Bonus ------- None Cogmind --------- Core Integrity 334/400 Matter 216/300 Energy 100/100 System Corruption 0% Temperature Cool (0) Movement Walking (120) Location -9/Materials Parts ------- > --- POWER (1) -------- (None) > --- PROPULSION (4) --- Improved Aluminum Leg Improved Aluminum Leg > --- UTILITY (2) ------ Small Storage Unit ECM Suite > --- WEAPON (2) ------- Heavy Assault Rifle > --- INVENTORY (8) ---- (None) Peak State ------------ > --- POWER ------------ (None) > --- PROPULSION ------- Improved Aluminum Leg Improved Aluminum Leg > --- UTILITY ---------- Small Storage Unit ECM Suite > --- WEAPON ----------- Heavy Assault Rifle > --- INVENTORY -------- (None) [Rating: 8] Favorites ----------- Power Ion Engine Engine Ion Engine Propulsion Aluminum Leg Leg Aluminum Leg Utility Small Storage Unit Device ECM Suite Storage Small Storage Unit Weapon EM Pulse Gun Energy Gun EM Pulse Gun Ballistic Gun Assault Rifle Special Weapon Mining Laser Build | -11 -10 -9 ------- Run | Scr Mat Mat Slots Evolved 2 | . . 2 Power . | . . . Propulsion 2 | . . 2 Utility . | . . . Weapon . | . . . Parts Attached 16 | 6 4 6 Power 1 | 1 . . Engine 1 | 1 . . Core . | . . . Reactor . | . . . Propulsion 7 | 2 2 3 Treads . | . . . Leg 7 | 2 2 3 Wheel . | . . . Hover . | . . . Flight . | . . . Utility 2 | 1 . 1 Device 1 | . . 1 Storage 1 | 1 . . Processor . | . . . Hackware . | . . . Protection . | . . . Artifact . | . . . Weapon 6 | 2 2 2 Energy Gun 1 | 1 . . Energy Cannon . | . . . Ballistic Gun 3 | 1 1 1 Ballistic Cannon . | . . . Launcher . | . . . Special Weapon 2 | . 1 1 Impact Weapon . | . . . Slashing Weapon . | . . . Piercing Weapon . | . . . Special Melee Weapon . | . . . Unidentified Prototypes . | . . . Parts Lost 8 | . 5 3 Power 1 | . 1 . Propulsion 4 | . 2 2 Utility . | . . . Weapon 3 | . 2 1 Highest Loss Streak 4 | . 4 3 To Critical Strikes . | . . . Average Slot Usage (%) 67 | . 80 50 Engine 7 | . 13 . Leg 23 | . 26 19 Device 4 | . . 11 Storage 12 | . 14 11 Energy Gun 7 | . 13 . Ballistic Gun 5 | . 7 2 Special Weapon 5 | . 5 6 Naked Turns . | . . . Heaviest Build 14 | 14 14 10 Greatest Support 26 | 20 20 26 Greatest Overweight (x) 3 | 3 1 3 Average Overweight (x) . | . . . Largest Inventory Capacity 8 | 8 8 8 Average Capacity 7 | 7 8 8 Most Carried 3 | 1 3 2 Average Carried . | . 1 . Final Capacity 8 | 8 8 8 Final Carried 3 | . 3 . Class Distribution -------------------- 100% | Mutant Dominant Class ---------------- Mutant | -10/Materials Mutant | -9/Materials Resources | -11 -10 -9 ----------- Run | Scr Mat Mat Matter Collected 331 | 210 121 . Remotely . | . . . Salvage Created 239 | . 208 31 Parts 10 | . 8 2 Haulers Intercepted . | . . . Recyclers Shooed . | . . . Parts Field Recycled . | . . . Retrieved Matter . | . . . Parts Self-Destructed . | . . . Prevented . | . . . Kills | -11 -10 -9 ------- Run | Scr Mat Mat Combat Hostiles Destroyed 5 | . 4 1 Guns 4 | . 3 1 AOE 1 | . 1 . Classes Destroyed 1 | . 1 . Grunt 5 | . 4 1 Best Kill Streak 2 | . 2 1 Combat Bots Only 2 | . 2 1 Max Kills in Single Turn 1 | . 1 1 Gunslinging . | . . . Exploded 1 | . 1 . Melee . | . . . Uniques/NPCs Destroyed . | . . . Combat | -11 -10 -9 -------- Run | Scr Mat Mat Damage Taken 852 | . 569 283 Core 153 | . 87 66 Absorbed by Shields . | . . . Core Remaining (%) 82 | 100 65 . Volleys Fired 43 | . 29 14 Largest 2 | . 2 1 Hottest 140 | . 140 100 Shots Fired 60 | . 46 14 Gun 49 | . 36 13 Cannon . | . . . Launcher . | . . . Special 11 | . 10 1 Kinetic 29 | . 16 13 Thermal 11 | . 10 1 Explosive . | . . . Electromagnetic 20 | . 20 . Robot Hit Streak 6 | . 6 6 Robot Miss Streak 4 | . 3 4 Penetration Max . | . . . Secondary Targets . | . . . Shots Hit Robots 32 | . 26 6 Core Hits 12 | . 10 2 Critical Kills 1 | . 1 . Critical Parts Destroyed . | . . . Critical Strikes 1 | . 1 . Destroy 1 | . 1 . Melee Attacks . | . . . Impact . | . . . Slashing . | . . . Piercing . | . . . Sneak Attacks . | . . . Combat Hostiles . | . . . Follow-up Attacks . | . . . Damage Inflicted 541 | . 458 83 Guns 404 | . 321 83 Cannons . | . . . Explosions 113 | . 113 . Melee . | . . . Ramming . | . . . Kinetic 191 | . 108 83 Thermal 137 | . 137 . Explosive . | . . . Electromagnetic 213 | . 213 . Impact . | . . . Slashing . | . . . Piercing . | . . . Highest Corruption . | . . . Average Corruption . | . . . Corruption Purged . | . . . Corruption Blocked . | . . . Overload Shots . | . . . Overflow Damage 13 | . 13 . Projectiles 4 | . 4 . Explosions 9 | . 9 . Melee . | . . . Knockbacks . | . . . Impact . | . . . Kinetic . | . . . Secondary . | . . . Self-Inflicted Damage 30 | . 30 . Shots 1 | . 1 . Rammed . | . . . Targets Rammed 1 | . 1 . Kicked 1 | . 1 . Crushed . | . . . Highest Temperature 104 | . 104 3 Average Temperature 25 | . 25 3 Received Heat Transfer 459 | . 303 156 Siege Activations . | . . . Robots Corrupted . | . . . Combat Hostiles . | . . . Parts Fried . | . . . Impact Corruptions . | . . . Robots Melted . | . . . Combat Hostiles . | . . . Parts Melted . | . . . Heat Transferred 200 | . 200 . Parts Sabotaged . | . . . Parts Stolen . | . . . Parts Stripped . | . . . Power Chain Reactions 2 | . 2 . Missiles Intercepted . | . . . Alert | -11 -10 -9 ------- Run | Scr Mat Mat Peak Influence 203 | . 203 174 Initial 81 | . . 81 Average 81 | . 79 107 Maximum Alert Level 1 | . 1 . Low Security (%) 95 | 100 91 100 Level 1 4 | . 8 . Level 2 . | . . . Level 3 . | . . . Level 4 . | . . . Level 5 . | . . . High Security . | . . . Max Security . | . . . Squads Dispatched 4 | . 1 3 Investigation 2 | . 1 1 Extermination . | . . . Reinforcement 2 | . . 2 Assault . | . . . Garrison . | . . . Intercept . | . . . Searches Triggered . | . . . Construction Impeded . | . . . Haulers Reinforced . | . . . Active Scanning Responses . | . . . Cargo Convoy Interrupts . | . . . Stealth | -11 -10 -9 --------- Run | Scr Mat Mat Distress Signals 4 | . 2 2 Communications Jammed . | . . . Distress Signals . | . . . Times Spotted 21 | . 13 8 Peak Tracking Total 7 | . 7 5 Tactical Retreats 1 | . 1 . Traps | -11 -10 -9 ------- Run | Scr Mat Mat Traps Triggered 1 | . . 1 Indirectly . | . . . Trap Hack Attempts . | . . . Triggered . | . . . Disarmed . | . . . Reprogrammed . | . . . Reused . | . . . Traps Extracted . | . . . Installed . | . . . Triggered . | . . . Machines | -11 -10 -9 ---------- Run | Scr Mat Mat Machines Disabled 1 | . . 1 Max in Single Turn 1 | . . 1 Machines Sabotaged . | . . . Garrisons Compromised . | . . . Overloaded Fab Kills . | . . . Hacking | -11 -10 -9 --------- Run | Scr Mat Mat Machines Accessed 1 | . 1 . Terminals 1 | . 1 . Fabricators . | . . . Repair Stations . | . . . Recycling Units . | . . . Scanalyzers . | . . . Garrison Access . | . . . Total Hacks 6 | . 6 . Successful 1 | . 1 . Failed 5 | . 5 . Catastrophic . | . . . Database Lockouts . | . . . Manual . | . . . Terminals 6 | . 6 . Fabricators . | . . . Repair Stations . | . . . Recycling Units . | . . . Scanalyzers . | . . . Garrison Access . | . . . Terminal Hacks 1 | . 1 . Zone Layout 1 | . 1 . Fabricator Hacks . | . . . Repair Station Hacks . | . . . Recycling Unit Hacks . | . . . Scanalyzer . | . . . Garrison Access Hacks . | . . . Unauthorized Hacks . | . . . Terminals . | . . . Fabricators . | . . . Repair Stations . | . . . Recycling Units . | . . . Scanalyzers . | . . . Garrison Access . | . . . Data Cores Recovered . | . . . Used . | . . . Hacking Detections 1 | . 1 . Full Trace Events 1 | . 1 . Feedback Events . | . . . Feedback Blocked . | . . . Robot Schematics Acquired . | . . . Robots Built . | . . . Authchips . | . . . Time . | . . . Total Robot Build Rating . | . . . Part Schematics Acquired . | . . . Parts Built . | . . . Authchips . | . . . Time . | . . . Total Part Build Rating . | . . . Parts Repaired . | . . . Time . | . . . Parts Recycled . | . . . Recycled Matter . | . . . Retrieved Matter . | . . . Retrieved Components . | . . . Parts Scanalyzed . | . . . Part Schematics Acquired . | . . . Parts Damaged . | . . . Bothacking | -11 -10 -9 ------------ Run | Scr Mat Mat Used RIF Installer . | . . . Robots Hacked . | . . . Non-combat . | . . . Combat . | . . . Robot Hacks Applied . | . . . Relay Couplers Released . | . . . Fabnet Peak Effective % . | . . . Robots Rewired . | . . . Allies Hacked . | . . . Hacks Repelled . | . . . Allies | -11 -10 -9 -------- Run | Scr Mat Mat Total Allies . | . . . Largest Group . | . . . Highest-Rated Group . | . . . Highest-Rated Ally . | . . . Total Orders . | . . . Ally Attacks . | . . . Total Damage . | . . . Kills . | . . . Allies Corrupted . | . . . Allies Melted . | . . . Intel | -11 -10 -9 ------- Run | Scr Mat Mat Robot Analysis Total . | . . . Derelict Logs Recovered . | . . . Drone Launches . | . . . Drone Recoveries . | . . . Exploration | -11 -10 -9 ------------- Run | Scr Mat Mat Turns Passed 551 | 58 285 208 Spaces Moved 283 | 38 134 111 Core 20 | 6 . 14 Treads . | . . . Legs 263 | 32 134 97 Wheels . | . . . Hover . | . . . Flight . | . . . Fastest Speed 50 | 50 120 120 Average Speed 123 | 118 124 124 Slowest Speed 200 | 200 190 200 Overloaded Moves . | . . . Propulsion Burnouts . | . . . Robots Hopped . | . . . Cave-ins Triggered . | . . . Exploration Rate (%) 12 | 3 21 12 Regions Visited 2 Branch Regions . Pre-discovered Areas . | . . . Known Exits Taken . | . . . Unknown Exits Taken 2 | 1 1 . Scrap Searched . | . . . Spaces Dug 7 | . 7 . Terrain Destroyed 17 | . 16 1 Melee . | . . . Projectile 9 | . 8 1 AOE 8 | . 8 . Terrain Rammed . | . . . Walls Destroyed . | . . . Machines Disabled . | . . . Actions | -11 -10 -9 --------- Run | Scr Mat Mat Total 394 | 48 183 163 Wait 49 | 4 14 31 Move 281 | 37 133 111 Hop . | . . . Pick Up 4 | 1 2 1 Fast Attach 8 | 5 1 2 Attach 5 | 1 . 4 Detach . | . . . Swap 3 | . 3 . Drop . | . . . Fire 43 | . 29 14 Melee . | . . . Ram . | . . . Kick 1 | . 1 . Crush . | . . . Escape Stasis . | . . . Rewire . | . . . Trap . | . . . Miscellaneous . | . . . Route ------- -11/Scrapyard -10/Materials -9/Materials History --------- Turn | Location | Event 16 | -11/Scrapyard | Discovered new exit (range 16) 59 | -11/Scrapyard | Entered Materials 313 | -10/Materials | Build established: Mutant 323 | -10/Materials | Discovered new exit (range 13) 344 | -10/Materials | Entered another Materials area 344 | -9/Materials | Evolved 2 slots: Propulsion x2 360 | -9/Materials | Lost 4 parts (1p1n2w) 523 | -9/Materials | Lost 3 parts (2n1w) 552 | -9/Materials | Self-destructed Last Messages --------------- 00353_ ALERT: Hostiles spotted, dispatching reinforcements to Terminal M006. 00353_ O-16 Technician locks terminal. 00392_ T-07 Excavator is excavating. 00397_ ALERT: Hostiles spotted, dispatching reinforcements to Terminal M005. 00399_ T-07 Excavator is excavating. 00459_ Connecting with Terminal... 00459_ Current location identified: Materials 00470_ Mining Laser destroyed. 00478_ Triggered Alarm Trap. 00478_ An alarm sounds. 00478_ ALERT: Alarm triggered, dispatching investigation squad. 00482_ Aluminum Leg destroyed. 00510_ Acquired Hvy. Assault Rifle. 00516_ Acquired Imp. Aluminum Leg. 00526_ G-34 Mercenary destroyed. 00542_ Processing Tank disabled. 00544_ R-06 Scavenger collects Sml. Laser. 00545_ R-06 Scavenger collects Ion Engine. Map ----- +----------------------------------------------------+ | ?????????????????????????????????????????????????? | | ?????????????????????????????????????????????????? | | ?????????????????????????????????????????????????? | | ?????????????????????????????????????????????????? | | ?????????????????????????????????????????????????? | | ?????????????????????????????????????????????????? | | ?????????????????????????????????????????????????? | | ?????????????????????????????????????????????????? | | ????????????????????????????????? ?????????????? | | ????????????????????????????????? ????????????? | | ????????????????????????????????? #????????????? | | ????????????????????????????????? #????????????? | | ????????????????????????????????# #????????????? | | ???????????????????????????????? #????????????? | | ????????????????????????????????# #????????????? | | ????????????????????????????????# #????????????? | | ????????????????????????????????# #????????????? | | ????????????????????????????????# #????????????? | | ????????????????????############# #????????????? | | ????????????????????? + # #????????????? | | ??????????????????????#r """ # #????????????? | | ??????????????????????# g""" # #????????????? | | ??????????????????????# """ + #??######????? | | ??????????????????????# """w# #? ?????? | | ??????????????????????#[ ! " # #? ?????? | | ??????????????????????#= @ g%r # # """ ""?????? | | ??????????????????????#=!! g # # """ ""?????? | | ??????????????????????########### + """ ""?????? | | ????????????????????????????????# # #??? | | ????????????????????????????????# # [ ! +??? | | ????????????????????????????????# #? #??? | | ????????????????????????????????# #?#########??? | | ????????????????????????????????# #????????????? | | ????????????????????????????????# #????????????? | | ????????????????????????????????# #????????????? | | ????????????????????????????????# ###########??? | | ????????????????????????????????# # #??? | | ????????????????????????????????# # T #??? | | ??????????????????????????####### # #??? | | ??????????????????????????# " #??? | | ??????????????????????????# + #??? | | ??????????????????????????# """"" # """ """ #??? | | ??????????????????????????# """"" # """ """ #??? | | ??????????????????????????# """"" # """ """ #??? | | ??????????????????????????# """"" ###########??? | | ??????????????????????????# """"" #????????????? | | ??????????????????????????# """"" #????????????? | | ??????????????????????????# """"" #????????????? | | ??????????????????????????# /#????????????? | | ??????????????????????????# #????????????? | +----------------------------------------------------+ Best States ------------- Heat Dissipation 28 Energy Generation 10 Energy Capacity 250 Matter Stores 300 Matter Capacity 300 Sight Range 16 Terrain Scan Density 10 ECM Strength 1 Evasion (%) 55 Item Schematics ----------------- None Robot Schematics ------------------ None Fabricated ------------ Nothing Alien Tech Used ----------------- None Achievements -------------- None Challenges ------------ None Game ------ Seed MakeshiftPhasingChip Manual? 0 Play Time 00:09:03 Cumulative 20.0 hours Start 2022.04.23 @ 14:39:14 End 2022.04.23 @ 15:01:32 Sessions 1 Manual Loads 0 Difficulty Rogue Special Mode None Game No. 38 Rogue 38 Adventurer 0 Explorer 0 Win Type - Total 0 Types 0/0/0/0/0/0/0/0/0 Lore% 20 Gallery% 16 Achievement% 17 Wizard Run 0 Options --------- ASCII 0 Keyboard 0 Movement Mouse Keybinds 0 Fullscreen 1 Font 24/Smallcaps Map View 76x50 Tactical HUD 1 Map Filters NONE Filters NONE Steam 1 RUN: 81460bfe-f309-4c5a-9014-0f166ac8314f